{"text_format":"3","workbook":"xlsx","n_sheets":1,"sheets":["Sheet1"],"not_rendered":{"defined_names":2},"read":"whole","date_system":"1900"}

{"sheet":"Sheet1","index":0,"n_rows":138,"n_cols":65,"rows_kept":138,"merged":[[0,2,0,19],[0,24,0,41],[1,2,1,19],[1,24,1,41],[2,2,2,19],[2,24,2,41],[2,58,4,58],[3,2,4,19],[3,24,4,41],[5,3,5,8],[5,11,5,14],[5,16,5,17],[5,25,5,30],[5,33,5,36],[5,38,5,39],[5,58,6,58],[10,2,10,19],[10,24,10,41],[12,6,12,19],[12,28,12,41],[13,6,13,19],[13,28,13,41],[14,5,14,17],[14,27,14,39],[16,7,16,10],[16,29,16,32],[17,2,17,14],[17,24,17,36],[20,10,20,18],[20,32,20,40],[21,10,21,18],[21,32,21,40],[22,2,22,6],[22,14,22,19],[22,24,22,28],[22,36,22,41],[23,2,23,6],[23,14,23,19],[23,24,23,28],[23,36,23,41],[24,15,24,19],[24,37,24,41],[25,4,25,5],[25,7,25,12],[25,14,25,18],[25,26,25,27],[25,29,25,34],[25,36,25,40],[26,8,26,11],[26,14,26,18],[26,36,26,40],[27,4,27,5],[27,8,27,11],[27,14,27,18],[27,26,27,27],[27,30,27,33],[27,36,27,40],[28,8,28,11],[28,14,28,18],[28,30,28,33],[28,36,28,40],[29,8,29,11],[29,14,29,18],[29,30,29,33],[29,36,29,40],[30,8,30,11],[30,14,30,18],[30,30,30,33],[30,36,30,40],[31,2,31,9],[31,11,31,19],[31,24,31,31],[31,33,31,41],[32,4,32,8],[32,9,32,10],[32,11,32,14],[32,15,32,16],[32,26,32,30],[32,31,32,32],[32,33,32,36],[32,37,32,38],[33,6,33,15],[33,16,33,17],[33,28,33,37],[33,38,33,39],[36,7,36,18],[36,29,36,40],[37,2,37,5],[37,7,37,14],[37,24,37,27],[37,29,37,36],[38,6,38,9],[38,11,38,14],[38,16,38,18],[38,28,38,31],[38,33,38,36],[38,38,38,40],[39,11,39,14],[39,16,39,18],[39,33,39,36],[39,38,39,40],[41,6,41,9],[41,11,41,14],[41,16,41,18],[41,28,41,31],[41,33,41,36],[41,38,41,40],[42,11,42,14],[42,16,42,18],[42,33,42,36],[42,38,42,40],[43,2,43,9],[43,11,43,19],[43,24,43,31],[43,33,43,41],[45,2,45,19],[45,24,45,41],[47,7,47,10],[47,16,47,18],[47,29,47,32],[47,38,47,40],[48,7,48,10],[48,16,48,18],[48,29,48,32],[48,38,48,40],[52,3,52,8],[52,25,52,30],[53,3,53,8],[53,13,53,18],[53,25,53,30],[53,35,53,40]]}
[null,null,"Liga Amateur de Deportes de Lincoln",{"$nulls":17}," ",{"$nulls":3},"Liga Amateur de Deportes de Lincoln",{"$nulls":17}," ","POR CUADRIPLICADO",{"$f":"(TODAY()-AA26)/365","v":{"v":125.13150684931507,"d":"125"}},{"$nulls":8},"Enero",1,2019,"D.N.I."," ACADEMIA JAVIER MASCHERANO","con","DEFINITIVO","[SI]","Padre","LIGA DEPORTIVA DEL OESTE (JUNÍN)","***JUNIN***"]
[null,null,"Afiliada a la A.F.A.  -  Desp. Nº 10.170  - Estrada 1.230 - Lincoln - 6070 ",{"$nulls":17}," ",{"$nulls":3},"Afiliada a la A.F.A.  -  Desp. Nº 10.170  - Estrada 1.230 - Lincoln - 6070 ",{"$nulls":17}," ","Si es \"A PRUEBA\" debe acompañarse",{"$nulls":9},"Febrero",2,2020,"C.I."," ATL. SOC. Y DEP. DE LINCOLN JUVENTUD UNIDA","sin","A PRUEBA","[NO]","Madre","LIGA DEPORTIVA CENTRAL VEDIA","ATLETICO AMBOS MUNDOS","LIGA DEPORTIVA DEL OESTE (JUNÍN)"]
[null,null,"Teléfono fijo 02355 421081 Mail: ligalincoln@gmail.com",{"$nulls":17}," ",{"$nulls":3},"Teléfono fijo 02355 421081 Mail: ligalincoln@gmail.com",{"$nulls":17}," ","el formulario 103 por quintuplicado",{"$nulls":9},"Marzo",3,2021,"D.N.I./C.I."," ATLÉTICO ARGENTINO","sin","DEFINITIVO / A PRUEBA","[SI] [NO]","Tutor","LIGA DE FÚTBOL DE GENERAL VILLEGAS","ATLETICO BUENOS AIRES AL PACÍFICO","LIGA DEPORTIVA DEL OESTE (JUNÍN)"]
[null,null,"SOLICITUD DE PASE INTERCLUB 101)",{"$nulls":21},"SOLICITUD DE PASE INTERCLUB 101)",{"$nulls":30},2022,null," ATLÉTICO BAYAUCA"]
[{"$nulls":20}," ",{"$nulls":21}," ","Si es con Carta Liberatoria debe acompañarse el original de la misma",{"$nulls":9},"Abril",4,2023,null," ATLÉTICO EL LINQUEÑO",null,"DEFINITIVO ////////////",null,"Padre - Madre","LIGA DE FÚTBOL DEL OESTE (AMÉRICA/RIVADAVIA)","ATLETICO DEFENSA ARGENTINA","LIGA DEPORTIVA DEL OESTE (JUNÍN)"]
[{"$nulls":3},"Lincoln (Pcia de Buenos Aires),",{"$nulls":5},{"$f":"IF(AF6=\"\",\"\",AF6)","v":""},"de",{"$f":"PROPER(AH6)","v":""},{"$nulls":3},"de",{"$f":"IF(AM6=\"\",\"\",AM6)","v":""},{"$nulls":3}," ",{"$nulls":4},"Lincoln (Pcia de Buenos Aires),",{"$nulls":6},"de",{"$nulls":4},"de",{"$nulls":4}," ","TAMAÑO DE HOJA A4",{"$nulls":9},"Mayo",5,2024,null," ATLÉTICO INDEPENDIENTE","con sin","////////////////A PRUEBA",null,"Padre - Tutor","LIGA TOLDENSE DE FÚTBOL","ATLETICO INDEPENDIENTE ","LIGA DEPORTIVA DEL OESTE (JUNÍN)"]
[{"$nulls":20}," ",{"$nulls":21}," ",{"$nulls":10},"Junio",6,2025,null," ATLÉTICO LAS TOSCAS",{"$nulls":3},"Madre - Tutor","LIGA DEPORTIVA DE GENERAL ARENALES","ATLETICO MARIANO MORENO","LIGA DEPORTIVA DEL OESTE (JUNÍN)"]
[null,null,"Señor Presidente de la",{"$nulls":17}," ",{"$nulls":3},"Señor Presidente de la",{"$nulls":17}," ",{"$nulls":10},"Julio",7,2026,null," ATLÉTICO PASTEUR Y FERROCARRIL OESTE",{"$nulls":3},"Padre - Madre - Tutor","LIGA DEPORTIVA DE FÚTBOL (ROJAS)","ATLETICO RIVADAVIA","LIGA DEPORTIVA DEL OESTE (JUNÍN)"]
[null,null,"LIGA AMATEUR DE DEPORTES DE LINCOLN",{"$nulls":17}," ",{"$nulls":3},"LIGA AMATEUR DE DEPORTES DE LINCOLN",{"$nulls":17}," ",{"$nulls":10},"Agosto",8,2027,null," ATLÉTICO PINTENSE",{"$nulls":4},"LIGA CASARENSE DE FÚTBOL","ATLETICO RIVER PLATE","LIGA DEPORTIVA DEL OESTE (JUNÍN)"]
[{"$nulls":20}," ",{"$nulls":21}," ",{"$nulls":10},"Septiembre",9,2028,null," ATLÉTICO ROBERTS",{"$nulls":4},"LIGA DEPORTIVA DE SALTO","ATLETICO SARMIENTO","LIGA DEPORTIVA DEL OESTE (JUNÍN)"]
[null," ","SOLICITUD DE TRANSFERENCIA",{"$nulls":17}," ",null,null," ","SOLICITUD DE TRANSFERENCIA",{"$nulls":17}," ",{"$nulls":10},"Octubre",10,2029,null," ATLÉTICO Y SOCIAL EL TRIUNFO",{"$nulls":4},"LIGA BRAGADENSE DE FÚTBOL","ATLETICO VILLA BELGRANO","LIGA DEPORTIVA DEL OESTE (JUNÍN)"]
[null," ",{"$nulls":18}," ",null,null," ",{"$nulls":18}," ",{"$nulls":10},"Noviembre",11,2030,null," ATLÉTICO Y SOCIAL SAN MARTIN",{"$nulls":4},"LIGA CHIVILCOYANA DE FÚTBOL","JORGE NEWBERY","LIGA DEPORTIVA DEL OESTE (JUNÍN)"]
[{"$f":"REPT(\"-\",70)","v":"----------------------------------------------------------------------"}," ",{"$nulls":3},"El que suscribe",{"$f":"IF(AC13=\"\",\"FALTA INDICAR NOMBRE DEL JUGADOR\",CONCATENATE(A13,V13,W13))","v":"FALTA INDICAR NOMBRE DEL JUGADOR"},{"$nulls":13}," ",{"$f":"UPPER(AC13)","v":""},{"$f":"REPT(\"-\",70)","v":"----------------------------------------------------------------------"}," ",{"$nulls":3},"El que suscribe",{"$nulls":14}," ",{"$nulls":10},"Diciembre",12,null,null," DEPORTIVO SOCIAL DE LINCOLN SAN MIGUEL",{"$nulls":4},"LIGA DEPORTIVA DE CHACABUCO","ORIGONE FOOT BALL CLUB","LIGA DEPORTIVA DEL OESTE (JUNÍN)"]
[null," ",{"$nulls":4},"(Nombres y Apellidos completos del jugador)",{"$nulls":13}," ",null,null," ",{"$nulls":4},"(Nombres y Apellidos completos del jugador)",{"$nulls":13}," ",{"$nulls":11},13,null,null," DEPORTIVO Y SOCIAL ARENAZA",{"$nulls":4},"LIGA DEPORTIVA DE COLÓN","RIVADAVIA","LIGA DEPORTIVA DEL OESTE (JUNÍN)"]
[{"$f":"REPT(\"-\",70)","v":"----------------------------------------------------------------------"}," ","Inscripto en el Club",null,null,{"$f":"IF(AB15=\"\",\"FALTA INDICAR NOMBRE DEL CLUB\",CONCATENATE(A15,V15,W15))","v":"FALTA INDICAR NOMBRE DEL CLUB"},{"$nulls":13},"de esta"," ",{"$f":"UPPER(AB15)","v":""},{"$f":"REPT(\"-\",70)","v":"----------------------------------------------------------------------"}," ","Inscripto en el Club",{"$nulls":16},"de esta"," ",{"$nulls":11},14,null,null," SOCIAL Y DEPORTIVO GENERAL PINTO",{"$nulls":4},"LIGA MERCEDINA DE FÚTBOL","SOCIAL, CULTURAL Y DEPORTIVO BAIGORRITA","LIGA DEPORTIVA DEL OESTE (JUNÍN)"]
[null," ","LIGA AMATEUR DE DEPORTES DE LINCOLN",{"$nulls":6},"  ,cuyos datos de identidad se consignan más abajo, solicita",{"$nulls":10}," ",null,null," ","LIGA AMATEUR DE DEPORTES DE LINCOLN",{"$nulls":6},"  ,cuyos datos de identidad se consignan más abajo, solicita",{"$nulls":10}," ",{"$nulls":11},15,null,null," SOCIAL Y DEPORTIVO VILLA FRANCIA",{"$nulls":4},"LIGA NUEVEJULIENSE DE FÚTBOL"]
[{"$f":"REPT(\"-\",70)","v":"----------------------------------------------------------------------"}," ","tenga a bien gestionar el pase",{"$nulls":4},{"$f":"IF(OR(AD17=\"\",AD17=\"DEFINITIVO / A PRUEBA\"),\"FALTA TIPO PASE\",CONCATENATE(A17,V17,W17))","v":"FALTA TIPO PASE"},{"$nulls":3},{"$f":"IF(AH17=\"\",\"\",AH17)","v":"sin"},"OPCION para el Club:",{"$nulls":7}," ",{"$f":"AD17","v":0},{"$f":"REPT(\"-\",70)","v":"----------------------------------------------------------------------"}," ","tenga a bien gestionar el pase",{"$nulls":8},"sin","OPCION para el Club:",{"$nulls":7}," ",{"$nulls":11},16,{"$nulls":7},"LIGA PEHUAJENSE DE FÚTBOL","***VEDIA***"]
[{"$f":"REPT(\"-\",70)","v":"----------------------------------------------------------------------"}," ",{"$f":"IF(Y18=\"\",\"FALTA INDICAR NOMBRE DEL CLUB\",CONCATENATE(A18,V18,W18))","v":"FALTA INDICAR NOMBRE DEL CLUB"},{"$nulls":12},"de esta Institución.",{"$nulls":4}," ",{"$f":"UPPER(Y18)","v":""},{"$f":"REPT(\"-\",70)","v":"----------------------------------------------------------------------"}," ",{"$nulls":13},"de esta Institución.",{"$nulls":4}," ",{"$nulls":11},17,{"$nulls":7},"LIGA TRENQUELAUQUENSE DE FÚTBOL","ANCALU SPORT CLUB","LIGA DEPORTIVA CENTRAL VEDIA"]
[null," ",{"$nulls":21}," ",{"$nulls":30},18,{"$nulls":7},"LIGA VEINTICINQUEÑA DE FÚTBOL","CLUB ATLETICO VEDIA ALUMNI","LIGA DEPORTIVA CENTRAL VEDIA"]
[{"$f":"REPT(\"-\",70)","v":"----------------------------------------------------------------------"}," ",{"$nulls":8},"Saluda a Usted atentamente.",{"$nulls":9}," ",{"$f":"UPPER(AB15)","v":""},{"$f":"REPT(\"-\",70)","v":"----------------------------------------------------------------------"}," ",{"$nulls":8},"Saluda a Usted atentamente.",{"$nulls":9}," ",{"$nulls":11},19,{"$nulls":8},"DEFENSORES DE CHRISTOPHERSEN","LIGA DEPORTIVA CENTRAL VEDIA"]
[{"$f":"REPT(\"-\",70)","v":"----------------------------------------------------------------------"}," ",{"$nulls":8},{"$f":"IF(C18=\"\",\"\",IF(OR(H17=\"\",H17=AL3),\"DEBE INDICAR SI ES DEFINITIVO O A PRUEBA\",\"\"))","v":""},{"$nulls":9}," ",{"$f":"UPPER(Y16)","v":"LIGA AMATEUR DE DEPORTES DE LINCOLN"},{"$f":"REPT(\"-\",70)","v":"----------------------------------------------------------------------"}," ",{"$nulls":8},{"$f":"IF(Y18=\"\",\"\",IF(OR(AD17=\"\",AD17=BH3),\"DEBE INDICAR SI ES DEFINITIVO O A PRUEBA\",\"\"))","v":""},{"$nulls":9}," ",{"$nulls":11},20,{"$nulls":8},"DEPORTIVO SARMIENTO","LIGA DEPORTIVA CENTRAL VEDIA"]
[null," ",{"$nulls":8},{"$f":"IF(C18=\"\",\"\",IF(OR(M17=\"\",M17=AK6),\"DEBE INDICAR SI ES CON O SIN OPCION\",\"\"))","v":""},{"$nulls":9}," ",null,null," ",{"$nulls":8},{"$f":"IF(Y18=\"\",\"\",IF(OR(AH17=\"\",AH17=BG6),\"DEBE INDICAR SI ES CON O SIN OPCION\",\"\"))","v":""},{"$nulls":9}," "]
[null," ","Datos de Identidad",{"$nulls":11},"(Firma del jugador)",{"$nulls":5}," ",null,null," ","Datos de Identidad",{"$nulls":11},"(Firma del jugador)",{"$nulls":5}," ",{"$nulls":11},21,{"$nulls":8},"DEPORTIVO Y RECREATIVO LEANDRO N. ALEM","LIGA DEPORTIVA CENTRAL VEDIA"]
[null," ","del Jugador:",{"$nulls":6},"(Sello del Club)",{"$nulls":4},"Declaramos que la firma",{"$nulls":5}," ",null,null," ","del Jugador:",{"$nulls":6},"(Sello del Club)",{"$nulls":4},"Declaramos que la firma",{"$nulls":5}," ",{"$nulls":11},22,{"$nulls":8},"FOOT BALL CLUB MATIENZO","LIGA DEPORTIVA CENTRAL VEDIA"]
[{"$f":"REPT(\"-\",70)","v":"----------------------------------------------------------------------"}," ",{"$nulls":13},"del jugador es auténtica",{"$nulls":4}," ",{"$f":"UPPER(Y18)","v":""},{"$f":"REPT(\"-\",70)","v":"----------------------------------------------------------------------"}," ",{"$nulls":13},"del jugador es auténtica",{"$nulls":4}," ",{"$nulls":11},23,{"$nulls":8},"HURACAN FOOT BALL CLUB","LIGA DEPORTIVA CENTRAL VEDIA"]
[null," ",null,"Nacido el",{"$f":"IF(AA26=\"\",\"\",AA26)","v":""},{"$nulls":15}," ",null,null," ",null,"Nacido el",{"$nulls":3},{"$f":"IF(Y18=\"\",\"\",IF(AA28=\"\",\"FALTA DOC DEL JUGADOR\",\"\"))","v":""},{"$nulls":12}," ",{"$nulls":11},24,{"$nulls":8},"SOCIAL Y DEPORTIVO ALBERDI","LIGA DEPORTIVA CENTRAL VEDIA"]
[null," ",{"$nulls":6},{"$f":"IF(E28=\"\",\"FALTA DOC DEL JUGADOR\",\"\")","v":"FALTA DOC DEL JUGADOR"},{"$nulls":11}," ",null,null," ",{"$nulls":18}," ",{"$nulls":11},25,{"$nulls":8},"SOCIAL Y DEPORTIVO ATLANTA","LIGA DEPORTIVA CENTRAL VEDIA"]
[null," ",null,"D.N.I.",{"$f":"IF(AA28=\"\",\"\",AA28)","v":""},{"$nulls":15}," ",null,null," ",null,"D.N.I.",{"$nulls":16}," ",{"$nulls":11},26,{"$nulls":8},"SOCIAL Y DEPORTIVO BLAQUIER","LIGA DEPORTIVA CENTRAL VEDIA"]
[null," ",{"$nulls":6},"Secretario Club",{"$nulls":5},"Presidente Club",{"$nulls":5}," ",null,null," ",{"$nulls":6},"Secretario Club",{"$nulls":5},"Presidente Club",{"$nulls":5}," ",{"$nulls":11},27,{"$nulls":8},"SOCIAL Y DEPORTIVO MARTIN D. YRIGOYEN","LIGA DEPORTIVA CENTRAL VEDIA"]
[null," ",{"$nulls":18}," ",null,null," ",{"$nulls":18}," ",{"$nulls":11},28,{"$nulls":8},"SOCIAL Y DEPORTIVO RIVER PLATE","LIGA DEPORTIVA CENTRAL VEDIA"]
[null," ",{"$nulls":6},"Aclaración",{"$nulls":5},"Aclaración",{"$nulls":5}," ",null,null," ",{"$nulls":6},"Aclaración",{"$nulls":5},"Aclaración",{"$nulls":5}," ",{"$nulls":11},29,{"$nulls":8},"SOCIAL Y DEPORTIVO SARMIENTO","LIGA DEPORTIVA CENTRAL VEDIA"]
[null," ",{"$f":"IF(C18=\"\",\"\",IF(OR(J33=\"\",J33=AM3),\"DEBE INDICAR SI ADJUNTA LIBERTAD DE ACCION\",\"\"))","v":""},{"$nulls":8},{"$f":"IF(C18=\"\",\"\",IF(OR(P33=\"\",P33=AM3),\"DEBE INDICAR SI ADJUNTA CONVENIO A PRUEBA\",\"\"))","v":""},{"$nulls":8}," ",null,null," ",{"$f":"IF(Y18=\"\",\"\",IF(OR(AF33=\"\",AF33=BI3),\"DEBE INDICAR SI ADJUNTA LIBERTAD DE ACCION\",\"\"))","v":""},{"$nulls":8},{"$f":"IF(Y18=\"\",\"\",IF(OR(AL33=\"\",AL33=BI3),\"DEBE INDICAR SI ADJUNTA CONVENIO A PRUEBA\",\"\"))","v":""},{"$nulls":8}," ",{"$nulls":11},30,{"$nulls":8},"SOCIAL Y DEPORTIVO UNION","LIGA DEPORTIVA CENTRAL VEDIA"]
[null," ",null,null,"Adjunto: Libertad Acción",{"$nulls":4},{"$f":"IF(AF33=\"\",\"\",AF33)","v":"[NO]"},null,"Convenio a prueba ",{"$nulls":3},{"$f":"IF(AL33=\"\",\"\",AL33)","v":"[SI]"},{"$nulls":4}," ",null,null," ",null,null,"Adjunto: Libertad Acción",{"$nulls":4},"[NO]",null,"Convenio a prueba ",{"$nulls":3},"[SI]",{"$nulls":4}," ",{"$nulls":20},"***VILLEGAS***"]
[null," ",{"$nulls":18}," ",null,null," ",{"$nulls":18}," ",{"$nulls":20},"ATLETICO AMEGHINO","LIGA DE FÚTBOL DE GENERAL VILLEGAS"]
[null," ",{"$nulls":18}," ",null,null," ",{"$nulls":18}," ",{"$nulls":20},"ATLETICO CHARLONE","LIGA DE FÚTBOL DE GENERAL VILLEGAS"]
[null," ","Para el caso de jugadores menores de edad:",{"$nulls":20}," ","Para el caso de jugadores menores de edad:",{"$nulls":38},"ATLETICO JUVENTUD UNIDA","LIGA DE FÚTBOL DE GENERAL VILLEGAS"]
[null," ","Autorización del:",{"$nulls":4},{"$f":"IF(W1>17,\"\",IF(OR(C38=\"\",C38=AN8),\"El jugador es menor de edad, requiere autorización de un mayor\",\"\"))","v":""},{"$nulls":12}," ",null,null," ","Autorización del:",{"$nulls":4},{"$f":"IF(AS1>17,\"\",IF(OR(Y38=\"\",Y38=BJ8),\"El jugador es menor de edad, requiere autorización de un mayor\",\"\"))","v":""},{"$nulls":12}," ",{"$nulls":20},"ATLETICO VILLEGAS","LIGA DE FÚTBOL DE GENERAL VILLEGAS"]
[{"$f":"REPT(\"-\",70)","v":"----------------------------------------------------------------------"}," ",{"$f":"IF(Y38=\"\",\"\",Y38)","v":"Padre - Madre - Tutor"},{"$nulls":4},{"$f":"IF(W1>17,\"\",IF(OR(C38=\"\",C38=AN8),\"DEBE INDICAR PARENTESCO DEL JUGADOR\",\"\"))","v":""},{"$nulls":12}," ",null,{"$f":"REPT(\"-\",70)","v":"----------------------------------------------------------------------"}," ","Padre - Madre - Tutor",{"$nulls":17}," ",{"$nulls":20},"ATLETICO Y SOCIAL CAÑADA SECA","LIGA DE FÚTBOL DE GENERAL VILLEGAS"]
[null," ","Documento",null,"DNI","Nº",{"$f":"IF(AC39=\"\",\"\",AC39)","v":""},{"$nulls":13}," ",null,null," ","Documento",null,"DNI","Nº",{"$nulls":14}," ",{"$nulls":20},"CENTRO EMPLEADOS DE COMERCIO","LIGA DE FÚTBOL DE GENERAL VILLEGAS"]
[null," ",null,null,"Tipo",{"$nulls":6},"(Aclaración)",{"$nulls":4},"(Firma)",{"$nulls":3}," ",null,null," ",null,null,"Tipo",{"$nulls":6},"(Aclaración)",{"$nulls":4},"(Firma)",{"$nulls":3}," ",{"$nulls":20},"DEPORTIVO Y SOCIAL INGENIERO WHITE","LIGA DE FÚTBOL DE GENERAL VILLEGAS"]
[null," ",{"$nulls":18}," ",null,null," ",{"$nulls":18}," ",{"$nulls":20},"ECLIPSE","LIGA DE FÚTBOL DE GENERAL VILLEGAS"]
[null," ","Documento",null,"DNI","Nº",{"$f":"IF(AC42=\"\",\"\",AC42)","v":""},{"$nulls":13}," ",null,null," ","Documento",null,"DNI","Nº",{"$nulls":14}," ",{"$nulls":20},"FÚTBOL CLUB BUNGE","LIGA DE FÚTBOL DE GENERAL VILLEGAS"]
[null," ",null,null,"Tipo",{"$nulls":6},"(Aclaración)",{"$nulls":4},"(Firma)",{"$nulls":3}," ",null,null," ",null,null,"Tipo",{"$nulls":6},"(Aclaración)",{"$nulls":4},"(Firma)",{"$nulls":3}," ",{"$nulls":20},"LARROUDE FÚTBOL CLUB","LIGA DE FÚTBOL DE GENERAL VILLEGAS"]
[null," ",{"$f":"IF(AS1>17,\"\",IF(G39=\"\",\"DEBE INDICAR NUMERO DE DOCUMENTO\",\"\"))","v":""},{"$nulls":8},{"$f":"IF(W1>17,\"\",IF(OR(C38=\"\",C38=AN5,C38=AN6,C38=AN7),\"DEBE INDICAR NUMERO DOCUMENTO 2\",\"\"))","v":""},{"$nulls":8}," ",null,null," ",{"$f":"IF(AS1>17,\"\",IF(AC39=\"\",\"DEBE INDICAR NUMERO DE DOCUMENTO\",\"\"))","v":""},{"$nulls":8},{"$f":"IF(AS1>17,\"\",IF(OR(Y38=\"\",Y38=BJ5,Y38=BJ6,Y38=BJ7),\"DEBE INDICAR NUMERO DOCUMENTO 2\",\"\"))","v":""},{"$nulls":8}," ",{"$nulls":20},"SOCIAL COSMOPOLITA RECREATIVA Y SPORTIVA","LIGA DE FÚTBOL DE GENERAL VILLEGAS"]
[null," ",{"$nulls":21}," ",{"$nulls":39},"SOCIAL Y DEPORTIVO SARMIENTO","LIGA DE FÚTBOL DE GENERAL VILLEGAS"]
[null," ","CONSTANCIA PARA EL JUGADOR",{"$nulls":17}," ",null,null," ","CONSTANCIA PARA EL JUGADOR",{"$nulls":17}," ",{"$nulls":20},"SOCIAL, CULTURAL Y DEPORTIVO SANTA RITA","LIGA DE FÚTBOL DE GENERAL VILLEGAS"]
[{"$nulls":20}," ",{"$nulls":21}," ",{"$nulls":20},"SPORTIVO VILLEGAS","LIGA DE FÚTBOL DE GENERAL VILLEGAS"]
[{"$nulls":6},"Ingresado en la Liga:",{"$nulls":13}," ",{"$nulls":7},"Ingresado en la Liga:",{"$nulls":13}," ",{"$nulls":20},"VILLA REGINA","LIGA DE FÚTBOL DE GENERAL VILLEGAS"]
[{"$nulls":7},"(Fecha)",{"$nulls":8},"(Hora)",{"$nulls":3}," ",{"$nulls":8},"(Fecha)",{"$nulls":8},"(Hora)",{"$nulls":3}," "]
[{"$nulls":20}," ",{"$nulls":21}," ",{"$nulls":20},"***AMERICA***"]
[{"$nulls":20}," ",{"$nulls":21}," ",{"$nulls":20},"ARGENTINO","LIGA DE FÚTBOL DEL OESTE (AMÉRICA/RIVADAVIA)"]
[{"$nulls":10},"(Sello de Liga)",{"$nulls":9}," ",{"$nulls":11},"(Sello de Liga)",{"$nulls":9}," ",{"$nulls":20},"ATLETICO AMIGOS DE GORRA DE CUERO","LIGA DE FÚTBOL DEL OESTE (AMÉRICA/RIVADAVIA)"]
[{"$nulls":20}," ",{"$nulls":21}," ",{"$nulls":20},"ATLETICO BARRIO NORTE","LIGA DE FÚTBOL DEL OESTE (AMÉRICA/RIVADAVIA)"]
[{"$nulls":3},"(Firma por la Liga)",{"$nulls":9},"(Aclaración de la Firma)",{"$nulls":6}," ",{"$nulls":4},"(Firma por la Liga)",{"$nulls":9},"(Aclaración de la Firma)",{"$nulls":6}," ",{"$nulls":20},"ATLETICO RIVADAVIA","LIGA DE FÚTBOL DEL OESTE (AMÉRICA/RIVADAVIA)"]
[{"$nulls":63},"DEPORTIVO Y SOCIAL LOS ONCE","LIGA DE FÚTBOL DEL OESTE (AMÉRICA/RIVADAVIA)"]
[{"$nulls":63},"ESCUELA DE FÚTBOL PATITA SANCHEZ","LIGA DE FÚTBOL DEL OESTE (AMÉRICA/RIVADAVIA)"]
[{"$nulls":63},"FÚTBOL CLUB TRES ALGARROBOS","LIGA DE FÚTBOL DEL OESTE (AMÉRICA/RIVADAVIA)"]
[{"$nulls":63},"INDEPENDIENTE FOOT BALL CLUB","LIGA DE FÚTBOL DEL OESTE (AMÉRICA/RIVADAVIA)"]
[{"$nulls":63},"RACING FOOT BALL CLUB","LIGA DE FÚTBOL DEL OESTE (AMÉRICA/RIVADAVIA)"]
[{"$nulls":63},"ROOSEVELT","LIGA DE FÚTBOL DEL OESTE (AMÉRICA/RIVADAVIA)"]
[{"$nulls":63},"SANSINENA FÚTBOL CLUB","LIGA DE FÚTBOL DEL OESTE (AMÉRICA/RIVADAVIA)"]
[{"$nulls":63},"SOCIAL Y ATLETICO JORGE NEWBERY","LIGA DE FÚTBOL DEL OESTE (AMÉRICA/RIVADAVIA)"]
[{"$nulls":63},"SOCIAL Y DEPORTIVO GONZALEZ MORENO","LIGA DE FÚTBOL DEL OESTE (AMÉRICA/RIVADAVIA)"]
[{"$nulls":63},"SOCIAL Y DEPORTIVO INDEPENDIENTE FÚTBOL CLUB","LIGA DE FÚTBOL DEL OESTE (AMÉRICA/RIVADAVIA)"]
[{"$nulls":63},"SOCIAL Y DEPORTIVO TRES ALGARROBOS","LIGA DE FÚTBOL DEL OESTE (AMÉRICA/RIVADAVIA)"]
[]
[{"$nulls":63},"***LOS TOLDOS***"]
[{"$nulls":63},"ATLETICO BELGRANO","LIGA TOLDENSE DE FÚTBOL"]
[{"$nulls":63},"ATLETICO DEFENSORES DE BELGRANO","LIGA TOLDENSE DE FÚTBOL"]
[{"$nulls":63},"ATLETICO IGNACIO COLIQUEO","LIGA TOLDENSE DE FÚTBOL"]
[{"$nulls":63},"ATLETICO JUAN EL BUENO","LIGA TOLDENSE DE FÚTBOL"]
[{"$nulls":63},"ATLETICO LA DELFINA","LIGA TOLDENSE DE FÚTBOL"]
[{"$nulls":63},"ATLETICO RIVER PLATE","LIGA TOLDENSE DE FÚTBOL"]
[{"$nulls":63},"CENTRO DE EDUCACIÓN FISICA Nº 94","LIGA TOLDENSE DE FÚTBOL"]
[{"$nulls":63},"JUVENTUD ALSINA","LIGA TOLDENSE DE FÚTBOL"]
[{"$nulls":63},"SPORTIVO ZAVALÍA","LIGA TOLDENSE DE FÚTBOL"]
[{"$nulls":63},"VIAMONTE FÚTBOL CLUB","LIGA TOLDENSE DE FÚTBOL"]
[]
[{"$nulls":63},"***ARENALES***"]
[{"$nulls":63},"AGUSTINA FÚTBOL CLUB","LIGA DEPORTIVA DE GENERAL ARENALES"]
[{"$nulls":63},"ARENALES FOOT BALL CLUB","LIGA DEPORTIVA DE GENERAL ARENALES"]
[{"$nulls":63},"ASOC. CULTURAL Y DEP. HURACAN FOOT BAAL CLUB ","LIGA DEPORTIVA DE GENERAL ARENALES"]
[{"$nulls":63},"ATLETICO FORTIN TIBURCIO","LIGA DEPORTIVA DE GENERAL ARENALES"]
[{"$nulls":63},"ATLETICO ONCE ESTRELLAS","LIGA DEPORTIVA DE GENERAL ARENALES"]
[{"$nulls":63},"COLONIAL FERRÉ","LIGA DEPORTIVA DE GENERAL ARENALES"]
[{"$nulls":63},"ESCUELA AGROTÉCNICA SALESIANA LA TRINIDAD","LIGA DEPORTIVA DE GENERAL ARENALES"]
[{"$nulls":63},"LA PINTA FOOT BALL CLUB","LIGA DEPORTIVA DE GENERAL ARENALES"]
[{"$nulls":63},"LOS DIABLOS ROJOS SOCIAL Y DEPORTIVO","LIGA DEPORTIVA DE GENERAL ARENALES"]
[{"$nulls":63},"SINGLAR CLUB SOCIAL Y DEPORTIVO","LIGA DEPORTIVA DE GENERAL ARENALES"]
[{"$nulls":63},"SOCIAL Y DEPORTIVO 12 DE OCTUBRE","LIGA DEPORTIVA DE GENERAL ARENALES"]
[{"$nulls":63},"SOCIAL Y DEPORTIVO ASCENSION","LIGA DEPORTIVA DE GENERAL ARENALES"]
[{"$nulls":63},"SOCIAL Y DEPORTIVO BELGRANO","LIGA DEPORTIVA DE GENERAL ARENALES"]
[]
[{"$nulls":63},"***ROJAS***"]
[{"$nulls":63},"ATLETICO ARGENTINO","LIGA DEPORTIVA DE FÚTBOL (ROJAS)"]
[{"$nulls":63},"ATLETICO BOCA JUNIORS","LIGA DEPORTIVA DE FÚTBOL (ROJAS)"]
[{"$nulls":63},"ATLETICO EL HURACAN","LIGA DEPORTIVA DE FÚTBOL (ROJAS)"]
[{"$nulls":63},"ATLETICO JORGE NEWBERY","LIGA DEPORTIVA DE FÚTBOL (ROJAS)"]
[{"$nulls":63},"ATLETICO JUVENTUD","LIGA DEPORTIVA DE FÚTBOL (ROJAS)"]
[{"$nulls":63},"ATLETICO SAN JOSE","LIGA DEPORTIVA DE FÚTBOL (ROJAS)"]
[{"$nulls":63},"CARABELAS","LIGA DEPORTIVA DE FÚTBOL (ROJAS)"]
[{"$nulls":63},"DEPORTIVO UNIÓN","LIGA DEPORTIVA DE FÚTBOL (ROJAS)"]
[]
[{"$nulls":63},"***CARLOS CASARES***"]
[{"$nulls":63},"ATLETICO AGROPECUARIO ARGENTINO","LIGA CASARENSE DE FÚTBOL"]
[{"$nulls":63},"ATLETICO ARGENTINA 78","LIGA CASARENSE DE FÚTBOL"]
[{"$nulls":63},"ATLETICO BOCA CARLOS CASARES","LIGA CASARENSE DE FÚTBOL"]
[{"$nulls":63},"ATLETICO DE CARLOS CASARES","LIGA CASARENSE DE FÚTBOL"]
[{"$nulls":63},"ATLETICO DE MOCTEZUMA","LIGA CASARENSE DE FÚTBOL"]
[{"$nulls":63},"ATLETICO DEFENSORES DE CADRET","LIGA CASARENSE DE FÚTBOL"]
[{"$nulls":63},"ATLETICO SMITH","LIGA CASARENSE DE FÚTBOL"]
[{"$nulls":63},"DEPORTIVO CASARES","LIGA CASARENSE DE FÚTBOL"]
[{"$nulls":63},"SOCIAL Y DEPORTIVO BELLOCQ","LIGA CASARENSE DE FÚTBOL"]
[]
[{"$nulls":63},"***PEHUAJO***"]
[{"$nulls":63},"ATLETICO BOCA JUNIOR","LIGA PEHUAJENSE DE FÚTBOL"]
[{"$nulls":63},"ATLETICO CALAVERAS","LIGA PEHUAJENSE DE FÚTBOL"]
[{"$nulls":63},"ATLETICO DEFENSORES DEL ESTE","LIGA PEHUAJENSE DE FÚTBOL"]
[{"$nulls":63},"ATLETICO EMPLEADOS DE COMERCIO","LIGA PEHUAJENSE DE FÚTBOL"]
[{"$nulls":63},"ATLETICO ESTUDIANTES UNIDOS","LIGA PEHUAJENSE DE FÚTBOL"]
[{"$nulls":63},"ATLETICO GENERAL SAN MARTIN","LIGA PEHUAJENSE DE FÚTBOL"]
[{"$nulls":63},"ATLETICO INDEPENDIENTE","LIGA PEHUAJENSE DE FÚTBOL"]
[{"$nulls":63},"ATLETICO JUVENTUD UNIDA","LIGA PEHUAJENSE DE FÚTBOL"]
[{"$nulls":63},"ATLETICO K.D.T.","LIGA PEHUAJENSE DE FÚTBOL"]
[{"$nulls":63},"ATLETICO MADERENSE","LIGA PEHUAJENSE DE FÚTBOL"]
[{"$nulls":63},"ATLETICO MONES CAZON","LIGA PEHUAJENSE DE FÚTBOL"]
[{"$nulls":63},"ATLETICO PEHUAJÓ","LIGA PEHUAJENSE DE FÚTBOL"]
[{"$nulls":63},"ATLETICO URDAMPILLETA","LIGA PEHUAJENSE DE FÚTBOL"]
[{"$nulls":63},"BALOMPIE FUTBOL CLUB","LIGA PEHUAJENSE DE FÚTBOL"]
[{"$nulls":63},"BANCARIOS","LIGA PEHUAJENSE DE FÚTBOL"]
[{"$nulls":63},"BULL DOG","LIGA PEHUAJENSE DE FÚTBOL"]
[{"$nulls":63},"DEPORTIVO ARGENTINO","LIGA PEHUAJENSE DE FÚTBOL"]
[{"$nulls":63},"FUTBOL CLUB HENDERSON","LIGA PEHUAJENSE DE FÚTBOL"]
[{"$nulls":63},"SOCIAL Y DEPORTIVO INDEPENDIENTE","LIGA PEHUAJENSE DE FÚTBOL"]
[{"$nulls":63},"SOCIAL Y DEPORTIVO PROGRESO","LIGA PEHUAJENSE DE FÚTBOL"]
[{"$nulls":63},"SOCIAL Y DEPORTIVO UNION","LIGA PEHUAJENSE DE FÚTBOL"]
[{"$nulls":63},"SOCIAL Y DEPORTIVO UNZUÉ","LIGA PEHUAJENSE DE FÚTBOL"]
[{"$nulls":63},"HURACAN FÚTBOL CLUB","LIGA PEHUAJENSE DE FÚTBOL"]